bitfinex/quotes_SOLUSD_20241020
["timestamp","ask_amount","ask_price","bid_price","bid_amount"]
[1729453662644,23.776884,160.17,160.08,20.0]
[1729453667357,6.5726,160.18,160.09,8.93489569]
[1729453667534,15.6172,160.2,160.1,20.0]
[1729453667859,15.6172,160.2,160.11,8.93489569]
[1729453668058,15.6172,160.2,160.12,20.0]
[1729453668357,15.6172,160.2,160.12,28.93489569]
[1729453668663,15.6172,160.2,160.14,20.0]
[1729453670239,6.2161,160.22,160.14,20.0]
[1729453670443,6.2161,160.22,160.14,8.93489569]
[1729453670743,6.2161,160.22,160.15,20.0]
[1729453673862,16.5104712,160.24,160.15,28.93489569]
[1729453674158,16.5104712,160.24,160.17,20.0]
[1729453680147,16.5104712,160.24,160.13,20.0]
[1729453681755,16.5104712,160.24,160.13,28.93489569]
[1729453685966,23.776884,160.23,160.13,28.93489569]
[1729453689779,16.5104712,160.24,160.14,8.93489569]
[1729453690064,16.5104712,160.24,160.15,20.0]
[1729453705059,16.5104712,160.24,160.16,20.0]
[1729453705459,16.5104712,160.24,160.18,20.0]
[1729453706174,0.6232712,160.24,160.18,28.93489569]
[1729453712386,0.6232712,160.24,160.18,34.1941465]
[1729453714083,0.6232712,160.24,160.2,20.0]
[1729453714285,0.6232712,160.24,160.2,28.93489569]
[1729453714592,0.6232712,160.24,160.22,20.0]
[1729453719865,0.6232712,160.24,160.22,25.35742849]
[1729453722380,0.6232712,160.24,160.22,34.29232418]
[1729453722760,8.1929,160.3,160.22,34.29232418]
[1729453723890,1.8748,160.3,160.24,20.0]
[1729453724077,1.8748,160.3,160.26,20.0]
[1729453727673,1.8748,160.3,160.26,8.93489569]
[1729453727869,1.8748,160.3,160.27,20.0]
[1729453728564,1.8748,160.3,160.28,20.0]
[1729453729191,1.8748,160.3,160.29,20.0]
[1729453730276,1.8748,160.3,160.29,28.93489569]
[1729453731529,1.8748,160.3,160.28,20.0]
[1729453733393,1.8748,160.3,160.28,28.93489569]
[1729453735814,1.8748,160.3,160.28,34.39694577]
[1729453743414,1.8748,160.3,160.28,28.93489569]
[1729453744226,1.8748,160.3,160.28,20.0]
[1729453749137,1.8748,160.3,160.26,20.0]
[1729453750734,8.1706,160.3,160.25,5.32628644]
[1729453750907,8.1706,160.3,160.25,6.2348]
[1729453752048,8.1706,160.3,160.23,20.0]
[1729453757112,40.261884,160.29,160.13,6.2035]
[1729453757322,40.261884,160.29,160.14,15.04642958]
[1729453757525,40.261884,160.29,160.2,1.08330831]
[1729453757804,16.485,160.29,160.2,8.93489569]
[1729453758010,16.485,160.29,160.21,8.93489569]
[1729453758230,16.485,160.29,160.22,20.0]
[1729453762710,1.8748,160.3,160.24,20.0]
[1729453767924,16.0416,160.29,160.22,6.54920056]
[1729453768127,16.0416,160.29,160.2,1.08318494]
[1729453768622,16.0416,160.29,160.2,10.01808063]
[1729453769228,16.0416,160.29,160.21,20.0]
[1729453771846,15.97766278,160.29,160.21,20.0]
[1729453775760,15.91372556,160.29,160.21,20.0]
[1729453779351,15.84978834,160.29,160.21,28.93489569]
[1729453782143,16.61128149,160.29,160.21,28.93489569]
[1729453782757,16.54739185,160.29,160.21,28.93489569]
[1729453786842,16.48345463,160.29,160.21,28.93489569]
[1729453797158,16.48345463,160.29,160.23,20.0]
[1729453797159,15.72196148,160.29,160.23,20.0]
[1729453797462,1.8748,160.3,160.25,20.0]
[1729453797769,1.8748,160.3,160.27,20.0]
[1729453798074,1.8748,160.3,160.29,20.0]
[1729453798655,1.8748,160.3,160.25,20.0]
[1729453800458,1.8748,160.3,160.24,15.48409625]
[1729453801755,1.8748,160.3,160.25,20.0]
[1729453808475,1.8748,160.3,160.25,28.93489569]
[1729453822076,1.8748,160.3,160.26,6.54920056]
[1729453822283,1.8748,160.3,160.27,20.0]
[1729453824596,1.8748,160.3,160.25,20.0]
[1729453859092,15.1989,160.29,160.24,5.32909453]
[1729453859293,15.1989,160.29,160.23,15.42698659]
[1729453859487,15.1989,160.29,160.24,1.08311493]
[1729453860687,15.1989,160.29,160.24,21.08311493]
[1729453861494,15.1989,160.29,160.25,20.0]
[1729453862816,1.8748,160.3,160.26,20.0]
[1729453885712,1.8748,160.3,160.26,8.93489569]
[1729453886314,1.8748,160.3,160.27,20.0]
[1729453891019,1.8748,160.3,160.27,8.93489569]
[1729453891219,1.8748,160.3,160.28,20.0]
[1729453891614,15.91059466,160.33,160.28,20.0]
[1729453892715,15.91059466,160.33,160.28,28.93489569]
[1729453897034,26.32915459,160.37,160.29,8.93489569]
[1729453897339,26.32915459,160.37,160.3,20.0]
[1729453897536,26.32915459,160.37,160.3,28.93489569]
[1729453898619,27.03832649,160.37,160.3,28.93489569]
[1729453904046,16.5451719,160.37,160.3,28.93489569]
[1729453907444,16.5451719,160.37,160.3,35.48409625]
[1729453907747,16.5451719,160.37,160.32,20.0]
[1729453908057,16.5451719,160.37,160.32,26.54920056]
[1729453916356,16.5451719,160.37,160.32,31.89933695]
[1729453919461,16.5451719,160.37,160.32,20.0]
[1729453919762,23.776884,160.36,160.27,16.56679408]
[1729453919935,23.776884,160.36,160.27,15.48409625]
[1729453920352,23.776884,160.36,160.27,16.56732741]
[1729453921361,23.776884,160.36,160.28,20.0]
[1729453937946,23.776884,160.36,160.28,28.93489569]
[1729453939660,23.776884,160.36,160.28,35.48409625]
[1729453950755,16.5451719,160.37,160.28,20.0]
[1729453951073,16.5451719,160.37,160.3,20.0]
[1729453951586,16.5451719,160.37,160.3,26.54920056]
[1729453951763,16.5451719,160.37,160.3,35.48409625]
[1729453957261,16.5451719,160.37,160.31,8.93489569]
[1729453957682,16.5451719,160.37,160.32,20.0]
[1729453966665,15.836,160.37,160.32,20.0]
[1729453972989,23.776884,160.36,160.28,1.08309731]
[1729453974484,23.776884,160.36,160.29,20.0]
[1729454001687,15.836,160.37,160.29,35.48409625]
[1729454001890,15.836,160.37,160.31,20.0]
[1729454002204,15.836,160.37,160.31,26.54920056]
[1729454002589,0.71727317,160.38,160.33,20.0]
[1729454002987,0.71727317,160.38,160.33,26.54920056]
[1729454007198,0.71727317,160.38,160.33,31.82487326]
[1729454031341,0.71727317,160.38,160.33,25.2756727]
[1729454047525,0.6232712,160.4,160.33,25.2756727]
[1729454048245,0.6232712,160.4,160.33,40.16394231]
[1729454048431,0.6232712,160.4,160.35,20.0]
[1729454049550,0.6232712,160.4,160.37,20.0]
[1729454052947,0.6232712,160.4,160.37,28.33906905]
[1729454053148,0.6232712,160.4,160.37,34.88826961]
[1729454058554,0.6232712,160.4,160.38,8.33906905]
[1729454058758,0.6232712,160.4,160.39,20.0]
[1729454059439,0.6232712,160.4,160.33,21.93070842]
[1729454059637,0.6232712,160.4,160.33,12.90690898]
[1729454060231,0.6232712,160.4,160.33,21.03946014]
[1729454060434,0.6232712,160.4,160.34,6.54920056]
[1729454060744,0.6232712,160.4,160.35,20.0]
[1729454060953,0.6232712,160.4,160.35,6.54920056]
[1729454061258,0.6232712,160.4,160.36,20.0]
[1729454062853,0.6232712,160.4,160.36,6.54920056]
[1729454063051,0.6232712,160.4,160.37,20.0]
[1729454063247,0.6232712,160.4,160.37,26.54920056]
[1729454063751,0.6232712,160.4,160.38,6.54920056]
[1729454063957,0.6232712,160.4,160.39,20.0]
[1729454064169,0.6232712,160.4,160.39,26.54920056]
[1729454071755,0.6232712,160.4,160.35,26.54920056]
[1729454072647,0.6232712,160.4,160.35,6.54920056]
[1729454072857,15.7582712,160.4,160.35,11.93964143]
[1729454074049,15.7582712,160.4,160.36,20.0]
[1729454081456,15.7582712,160.4,160.32,13.038012]
[1729454081663,15.7582712,160.4,160.32,6.54920056]
[1729454082280,15.7582712,160.4,160.32,15.16137949]
[1729454082768,15.7582712,160.4,160.33,20.0]
[1729454085861,15.7582712,160.4,160.35,20.0]
[1729454086278,15.7582712,160.4,160.37,20.0]
[1729454088786,15.7582712,160.4,160.36,20.0]
[1729454094282,15.7582712,160.4,160.37,20.0]
[1729454097867,0.6232712,160.4,160.37,20.0]
[1729454098089,0.6232712,160.4,160.37,35.16137949]
[1729454103164,0.6232712,160.4,160.37,28.61217893]
[1729454121170,0.6232712,160.4,160.38,8.61217893]
[1729454121388,0.6232712,160.4,160.39,20.0]
[1729454121889,0.6232712,160.4,160.39,28.61217893]
[1729454122070,0.6232712,160.4,160.39,35.16137949]
[1729454124180,0.6232712,160.4,160.38,16.53836046]
[1729454124181,15.9371,160.48,160.4,35.16137949]
[1729454131017,15.9371,160.52,160.4,35.16137949]
[1729454133189,15.9371,160.52,160.4,28.61217893]
[1729454133381,15.9371,160.52,160.42,20.0]
[1729454133605,15.9371,160.52,160.44,20.0]
[1729454135482,15.9371,160.52,160.44,8.61217893]
[1729454135684,15.9371,160.52,160.45,20.0]
[1729454137008,16.56113003,160.52,160.45,20.0]
[1729454137600,15.9371,160.52,160.46,8.61217893]
[1729454137789,15.9371,160.52,160.47,20.0]
[1729454139210,15.9371,160.52,160.47,26.54920056]
[1729454139409,15.9371,160.52,160.47,35.16137949]
[1729454139609,15.9371,160.52,160.49,20.0]
[1729454139794,0.62403936,160.53,160.49,20.0]
[1729454139985,15.9371,160.52,160.49,20.0]
[1729454140211,15.9371,160.52,160.46,20.0]
[1729454140397,15.9371,160.52,160.45,20.0]
[1729454140602,15.9371,160.52,160.45,35.16137949]
[1729454141491,15.9371,160.52,160.47,20.0]
[1729454146389,15.9371,160.52,160.47,28.61217893]
[1729454146794,15.9371,160.52,160.47,33.97798835]
[1729454148005,15.9371,160.52,160.47,40.52718891]
[1729454153219,15.9371,160.52,160.48,8.61217893]
[1729454153416,15.9371,160.52,160.49,20.0]
[1729454155629,16.8404712,160.56,160.49,20.0]
[1729454155933,16.8404712,160.56,160.51,20.0]
[1729454156112,16.8404712,160.56,160.51,35.16137949]
[1729454157408,16.8404712,160.56,160.52,8.61217893]
[1729454157610,17.46434845,160.56,160.53,20.0]
[1729454162138,16.8404712,160.56,160.53,20.0]
[1729454168022,16.8404712,160.56,160.49,20.0]
[1729454168443,16.8404712,160.56,160.48,15.16137949]
[1729454169733,30.000584,160.55,160.48,8.61217893]
[1729454171240,30.000584,160.55,160.49,20.0]
[1729454174733,30.000584,160.55,160.45,20.0]
[1729454178630,29.92598224,160.55,160.45,20.0]
[1729454181840,23.776884,160.53,160.45,20.0]
[1729454182146,23.776884,160.53,160.44,8.61217893]
[1729454182355,23.776884,160.51,160.42,6.54920056]
[1729454182529,23.776884,160.51,160.39,8.61217893]
[1729454182727,15.834,160.5,160.4,1.08116072]
[1729454183249,15.834,160.5,160.41,8.612179]
[1729454183442,15.834,160.5,160.4,1.08116072]
[1729454184544,15.834,160.5,160.4,21.08116072]
[1729454184739,23.776884,160.49,160.4,21.08116072]
[1729454185763,6.0142,160.48,160.4,1.08116072]
[1729454186047,5.96092732,160.48,160.4,1.08116072]
[1729454186953,5.96092732,160.48,160.4,21.08116072]
[1729454187850,15.834,160.5,160.4,21.08116072]
[1729454188148,15.834,160.5,160.42,20.0]
[1729454188339,16.1548,160.55,160.43,6.54920056]
[1729454188556,16.1548,160.55,160.44,20.0]
[1729454188722,16.1548,160.55,160.44,26.54920056]
[1729454189226,6.0142,160.54,160.44,26.54920056]
[1729454190246,23.70228224,160.53,160.44,26.54920056]
[1729454193553,23.63834502,160.53,160.44,26.54920056]
[1729454197443,23.5744078,160.53,160.44,26.54920056]
[1729454199435,23.5744078,160.53,160.44,31.92571248]
[1729454201134,23.5744078,160.53,160.44,40.5387013]
[1729454202233,6.0142,160.54,160.46,20.0]
[1729454203446,16.1548,160.55,160.46,20.0]
[1729454203648,16.1548,160.55,160.48,20.0]
[1729454205963,23.776884,160.54,160.48,20.0]
[1729454214832,24.43328902,160.54,160.48,20.0]
[1729454247671,23.776884,160.54,160.48,20.0]
[1729454249376,24.48154131,160.54,160.48,20.0]
[1729454260483,23.776884,160.5,160.43,6.49420425]
[1729454260681,23.776884,160.5,160.4,1.08252605]
[1729454261806,23.776884,160.5,160.4,21.08252605]
[1729454268802,23.776884,160.5,160.4,1.08252605]
[1729454268981,16.26702959,160.51,160.4,1.08252605]
[1729454268982,23.776884,160.48,160.4,1.08252605]
[1729454272107,16.6459,160.47,160.4,1.08252605]
[1729454273816,17.35346254,160.47,160.4,1.08252605]
[1729454275710,23.776884,160.46,160.39,20.0]
[1729454276096,23.776884,160.46,160.36,6.07586543]
[1729454276314,23.776884,160.44,160.34,10.6586]
[1729454276492,23.776884,160.44,160.35,1.08296597]
[1729454278014,24.48460544,160.44,160.35,1.08296597]
[1729454278509,24.48460544,160.44,160.35,21.08296597]
[1729454285920,0.70772144,160.44,160.35,35.77182022]
[1729454286228,17.35346254,160.47,160.37,20.0]
[1729454286392,17.35346254,160.47,160.38,14.68885425]
[1729454286597,17.35346254,160.47,160.39,20.0]
[1729454286795,17.35346254,160.47,160.41,20.0]
[1729454287596,0.70756254,160.47,160.43,20.0]
[1729454287815,0.70756254,160.47,160.43,26.07586543]
[1729454288014,0.70756254,160.47,160.45,20.0]
[1729454300630,0.70756254,160.47,160.43,20.0]
[1729454301324,0.70756254,160.47,160.42,8.61298882]
[1729454301534,0.70756254,160.47,160.41,5.31188066]
[1729454301705,16.1086,160.46,160.4,6.07586543]
[1729454302926,16.1086,160.46,160.41,20.0]
[1729454330745,16.1086,160.46,160.37,20.0]
[1729454330961,16.1086,160.46,160.36,7.4186]
[1729454331173,16.1086,160.46,160.36,12.66293712]
[1729454331756,16.1086,160.46,160.36,5.24433712]
[1729454331933,16.1086,160.46,160.35,6.07586543]
[1729454332261,16.1086,160.46,160.36,20.0]
[1729454335049,23.776884,160.45,160.36,20.0]
[1729454337943,30.049784,160.45,160.36,20.0]
[1729454341256,23.776884,160.43,160.36,20.0]
[1729454341566,24.4579851,160.43,160.36,20.0]
[1729454343665,24.4579851,160.43,160.35,20.0]
[1729454385218,24.5579851,160.43,160.32,6.49778172]
[1729454385376,23.776884,160.41,160.3,1.08293602]
[1729454385711,23.776884,160.41,160.3,7.58071802]
[1729454386378,22.7013,160.42,160.3,7.58071802]
[1729454386687,22.7013,160.42,160.33,20.0]
[1729454386878,22.7013,160.42,160.35,20.0]
[1729454394695,23.876884,160.41,160.3,5.24470308]
[1729454395010,22.7013,160.42,160.31,6.07586543]
[1729454396318,22.7013,160.42,160.32,20.0]
[1729454397902,23.776884,160.41,160.32,20.0]
[1729454401814,23.876884,160.41,160.32,20.0]
[1729454402122,23.776884,160.41,160.32,20.0]
[1729454407022,22.8013,160.42,160.32,20.0]
[1729454409008,23.776884,160.41,160.32,20.0]
[1729454418054,22.7013,160.42,160.32,20.0]
[1729454418843,22.7013,160.42,160.33,20.0]
[1729454420737,23.776884,160.41,160.33,20.0]
[1729454421051,23.776884,160.41,160.3,20.0]
[1729454426446,16.0862,160.38,160.29,20.0]
[1729454427526,30.175384,160.37,160.29,20.0]
[1729454428137,30.175384,160.37,160.25,7.4186]
[1729454428329,30.275384,160.37,160.25,12.75205561]
[1729454428654,6.236,160.36,160.25,12.75205561]
[1729454428833,6.2367,160.34,160.25,5.33345561]
[1729454429157,23.776884,160.34,160.24,6.07586543]
[1729454429338,23.776884,160.34,160.22,12.752055]
[1729454429656,23.776884,160.34,160.21,7.4186]
[1729454429657,30.013584,160.34,160.21,7.4186]
[1729454429823,30.113584,160.34,160.21,12.73008739]
[1729454430028,23.776884,160.34,160.21,12.73008739]
[1729454430464,16.0862,160.35,160.23,20.0]
[1729454431532,16.0862,160.35,160.23,6.07586543]
[1729454431852,16.0862,160.35,160.24,20.0]
[1729454432524,22.3226,160.35,160.24,20.0]
[1729454432733,16.0862,160.35,160.24,20.0]
[1729454434143,16.0862,160.35,160.26,20.0]
[1729454434350,16.0862,160.35,160.26,26.24]
[1729454434548,6.3985,160.37,160.26,26.24]
[1729454434728,6.3985,160.37,160.26,32.31586543]
[1729454438152,6.3985,160.37,160.26,37.66733653]
[1729454442358,6.3985,160.37,160.26,31.42733653]
[1729454444044,6.3985,160.37,160.23,23.776884]
[1729454444045,15.8571,160.36,160.23,23.776884]
[1729454444268,23.776884,160.35,160.23,5.38074009]
[1729454444556,23.776884,160.35,160.22,6.24]
[1729454445541,23.776884,160.35,160.23,20.0]
[1729454446029,23.776884,160.35,160.22,20.0]
[1729454446030,23.776884,160.33,160.22,20.0]
[1729454446467,23.776884,160.33,160.22,25.42804065]
[1729454446959,23.776884,160.33,160.22,20.0]
[1729454447549,23.776884,160.33,160.19,20.0]
[1729454448052,15.8571,160.32,160.19,20.0]
[1729454448235,23.776884,160.31,160.18,18.41326266]
[1729454448434,6.6533,160.3,160.18,11.91268625]
[1729454449253,6.5533,160.3,160.18,11.91268625]
[1729454449574,6.5533,160.3,160.19,6.07586543]
[1729454449869,6.5533,160.3,160.2,20.0]
[1729454457460,23.776884,160.29,160.2,20.0]
[1729454457659,23.776884,160.29,160.19,20.0]
[1729454458169,6.5533,160.3,160.19,20.0]
[1729454458370,15.8571,160.29,160.19,20.0]
[1729454466367,15.8571,160.29,160.17,20.0]
[1729454468169,23.776884,160.28,160.17,25.22815636]
[1729454468471,23.776884,160.28,160.17,5.22815636]
[1729454468674,23.776884,160.28,160.16,6.50196345]
[1729454469380,15.8571,160.29,160.17,29.85274943]
[1729454469550,15.8571,160.29,160.18,20.0]
[1729454469869,15.8571,160.29,160.2,20.0]
[1729454471977,15.8571,160.29,160.19,20.0]
[1729454474892,15.8571,160.29,160.21,20.0]
[1729454478978,15.8571,160.29,160.19,20.0]
[1729454479176,15.8571,160.29,160.17,6.50136164]
[1729454479381,15.8571,160.29,160.18,23.776884]
[1729454480363,15.8571,160.29,160.19,20.0]
[1729454482985,15.8571,160.29,160.18,20.0]
[1729454487683,23.776884,160.28,160.17,11.76424454]
[1729454487986,23.876884,160.28,160.17,5.2628829]
[1729454488286,23.876884,160.28,160.16,7.16000062]
[1729454489258,23.876884,160.28,160.17,20.0]
[1729454490172,0.1,160.28,160.17,20.0]
[1729454493392,22.5184,160.27,160.17,20.0]
[1729454493963,22.5184,160.27,160.16,6.42420271]
[1729454493964,22.5184,160.27,160.16,1.08246305]
[1729454495491,22.5184,160.27,160.16,21.08246305]
[1729454497867,22.5184,160.27,160.18,20.0]
[1729454498079,22.5184,160.27,160.2,20.0]
[1729454499195,15.9675,160.27,160.2,20.0]
[1729454500441,15.9675,160.27,160.21,23.776884]
[1729454500625,15.9675,160.27,160.22,20.0]
[1729454501342,15.9675,160.27,160.19,20.0]
[1729454501501,15.9675,160.27,160.2,23.776884]
[1729454501699,15.9675,160.27,160.21,20.0]
[1729454503112,15.9675,160.27,160.17,20.0]
[1729454504528,15.9675,160.27,160.18,23.776884]
[1729454504722,15.9675,160.27,160.19,20.0]
[1729454505823,15.9675,160.27,160.17,23.776884]
[1729454507237,15.9675,160.27,160.18,20.0]
[1729454507530,15.9675,160.27,160.2,20.0]
[1729454507739,15.90356278,160.27,160.21,23.776884]
[1729454508041,15.90356278,160.27,160.22,20.0]
[1729454509022,15.90356278,160.27,160.2,23.776884]
[1729454509226,15.90356278,160.27,160.21,20.0]
[1729454510945,22.9618,160.31,160.22,23.776884]
[1729454511111,22.9618,160.31,160.23,20.0]
[1729454511931,22.89784154,160.31,160.23,20.0]
[1729454515443,22.83388308,160.31,160.23,20.0]
[1729454518680,22.76992462,160.31,160.23,20.0]
[1729454522038,22.70596616,160.31,160.23,20.0]
[1729454522814,16.4109,160.35,160.28,23.776884]
[1729454523021,16.4109,160.35,160.29,20.0]
[1729454526442,16.4109,160.35,160.26,23.776884]
[1729454526737,16.4109,160.35,160.27,20.0]
[1729454528434,16.34723966,160.35,160.27,20.0]
[1729454531941,16.28357932,160.35,160.27,20.0]
[1729454535325,16.21962086,160.35,160.27,20.0]
[1729454538725,16.15596052,160.35,160.27,20.0]
[1729454542618,16.09200206,160.35,160.27,20.0]
[1729454548031,16.09200206,160.35,160.25,20.0]
[1729454556876,6.403,160.34,160.25,20.0]
[1729454557170,12.6399,160.34,160.23,1.08179161]
[1729454557352,12.6399,160.34,160.21,13.55846543]
[1729454557545,6.403,160.34,160.22,1.08195065]
[1729454558561,6.403,160.34,160.22,21.08195065]
[1729454560748,6.403,160.34,160.23,23.776884]
[1729454560960,6.403,160.34,160.26,20.0]
[1729454568154,6.403,160.34,160.22,23.24981808]
[1729454568355,6.403,160.34,160.22,7.15781608]
[1729454569800,6.403,160.34,160.23,20.0]
[1729454573352,6.403,160.34,160.22,21.08195065]
[1729454586968,16.3316,160.33,160.22,21.08195065]
[1729454587287,22.669,160.33,160.2,6.07586543]
[1729454587489,22.669,160.33,160.2,7.15906214]
[1729454588378,22.669,160.33,160.21,20.0]
[1729454590801,0.1,160.32,160.21,20.0]
[1729454590995,22.669,160.33,160.21,20.0]
[1729454591782,23.876884,160.32,160.21,20.0]
[1729454592092,28.8378,160.31,160.2,20.0]
[1729454592974,22.5999,160.31,160.2,20.0]
[1729454594394,30.015484,160.3,160.19,1.08344877]
[1729454594570,30.015484,160.3,160.18,23.776884]
[1729454594765,30.115484,160.3,160.18,23.776884]
[1729454594986,16.3316,160.29,160.17,7.8015]
[1729454595572,16.3316,160.29,160.18,20.0]
[1729454597001,16.3316,160.29,160.19,23.776884]
[1729454597298,16.3316,160.29,160.2,20.0]
[1729454603500,6.49632657,160.32,160.22,20.0]
[1729454603876,15.5543,160.33,160.22,20.0]
[1729454605199,15.5543,160.33,160.24,20.0]
[1729454611289,15.5543,160.33,160.24,26.07586543]
[1729454611882,6.0839,160.35,160.26,20.0]
[1729454612306,6.0839,160.35,160.26,26.07586543]
[1729454615607,15.5543,160.34,160.23,20.0]
[1729454615783,15.5543,160.34,160.22,7.8015]
[1729454617011,15.5543,160.34,160.23,43.776884]
[1729454626115,21.7912,160.34,160.23,20.0]
[1729454632613,28.26646131,160.34,160.23,20.0]
[1729454636804,23.776884,160.33,160.23,20.0]
[1729454643010,22.02956131,160.34,160.23,20.0]
[1729454643203,15.5543,160.34,160.23,20.0]
[1729454677082,15.5543,160.34,160.25,20.0]
[1729454677455,15.5543,160.34,160.26,29.85245236]
[1729454677682,15.5543,160.34,160.27,20.0]
[1729454684178,15.5543,160.34,160.27,25.40733747]
[1729454700997,6.47521269,160.37,160.29,20.0]
[1729454701200,16.1891,160.38,160.31,20.0]
[1729454713412,16.1891,160.38,160.28,20.0]
[1729454713904,16.1891,160.38,160.27,20.0]
[1729454714385,16.1891,160.38,160.26,11.42362209]
[1729454714782,16.1891,160.38,160.27,23.776884]
[1729454715014,16.1891,160.38,160.26,11.42362209]
[1729454715806,16.1891,160.38,160.27,20.0]
[1729454723005,22.69743726,160.38,160.27,20.0]
[1729454730534,51.516684,160.37,160.27,20.0]
[1729454730820,51.516684,160.37,160.23,8.88446554]
[1729454730821,15.1802,160.36,160.24,20.0]
[1729454731194,15.1802,160.36,160.23,8.88446554]
[1729454731798,15.1802,160.36,160.24,23.776884]
[1729454732509,15.1802,160.36,160.25,20.0]
[1729454732922,6.324,160.35,160.25,20.0]
[1729454733096,15.1802,160.34,160.25,20.0]
[1729454751629,15.1802,160.34,160.23,14.3586146]
[1729454751934,15.1802,160.34,160.23,8.88464121]
[1729454752714,15.1802,160.34,160.24,20.0]
[1729454756029,15.1802,160.34,160.23,21.08314121]
[1729454756530,15.1802,160.34,160.23,1.08314121]
[1729454762419,15.1802,160.34,160.24,20.0]
[1729454763236,15.1802,160.34,160.23,1.08314121]
[1729454764932,15.1802,160.34,160.23,20.0]
[1729454767119,15.1802,160.34,160.22,30.18270254]
[1729454767120,15.1802,160.34,160.22,1.08323075]
[1729454767418,21.4169,160.34,160.21,20.0]
[1729454767732,27.92729334,160.34,160.21,20.0]
[1729454767912,12.74709334,160.34,160.21,20.0]
[1729454768112,6.4047,160.33,160.21,20.0]
[1729454769814,6.4047,160.33,160.21,25.22966128]
[1729454770416,15.7045,160.32,160.21,25.22966128]
[1729454776437,15.7045,160.32,160.23,20.0]
[1729454776642,15.7045,160.32,160.25,20.0]
[1729454776938,6.64196328,160.38,160.25,20.0]
[1729454776939,15.0665,160.36,160.25,20.0]
[1729454779350,15.0665,160.36,160.27,20.0]
[1729454780320,15.0665,160.36,160.25,43.776884]
[1729454785736,15.0665,160.36,160.25,20.0]
[1729454800347,21.3024,160.36,160.23,20.0]
[1729454801875,21.3024,160.36,160.23,25.48786001]
[1729454802251,21.3024,160.36,160.23,20.0]
[1729454807368,21.3024,160.36,160.21,6.07556836]
[1729454807369,15.8768,160.32,160.21,6.07556836]
[1729454808769,15.8768,160.32,160.22,20.0]
[1729454809278,15.8768,160.32,160.21,20.0]
[1729454809575,15.8768,160.32,160.2,7.8015]
[1729454809576,23.776884,160.3,160.17,15.82339784]
[1729454809776,15.8768,160.29,160.17,15.82339784]
[1729454809983,15.8768,160.29,160.17,12.58339784]
[1729454810169,23.776884,160.28,160.17,6.50782948]
[1729454810476,6.3687,160.27,160.17,6.50782948]
[1729454811658,6.3687,160.27,160.18,20.0]
[1729454813777,15.8768,160.26,160.18,20.0]
[1729454813975,15.8768,160.26,160.17,6.50782948]
[1729454814176,22.1169,160.26,160.17,6.50782948]
[1729454814379,30.017284,160.25,160.14,20.0]
[1729454814579,6.2418,160.21,160.1,12.67267511]
[1729454814887,6.2418,160.21,160.1,6.49457511]
[1729454814888,15.8768,160.21,160.1,6.49457511]
[1729454815487,15.8768,160.21,160.1,1.08333126]
[1729454816179,22.1186,160.21,160.1,1.08333126]
[1729454816355,6.3687,160.2,160.1,1.08333126]
[1729454819406,6.3687,160.2,160.11,23.9662328]
[1729454819589,15.8768,160.21,160.14,20.0]
[1729454819775,22.2455,160.25,160.14,20.0]
[1729454820275,22.2455,160.25,160.13,43.776884]
[1729454821601,22.2455,160.25,160.13,42.776884]
[1729454822793,22.2455,160.25,160.13,50.578384]
[1729454824890,22.2455,160.25,160.13,56.01014496]
[1729454826481,22.2455,160.25,160.13,62.08571332]
[1729454829495,22.2455,160.25,160.14,6.07556836]
[1729454829701,15.8768,160.25,160.15,43.776884]
[1729454829891,15.8768,160.25,160.16,6.07556836]
[1729454830196,22.4115,160.29,160.17,43.776884]